bitfinex-derivatives/quotes_BTCF0:USTF0_20250901
["timestamp","ask_amount","ask_price","bid_price","bid_amount"]
[1756763884368,0.08133,107770.0,107760.0,0.0474]
[1756763884570,0.08133,107770.0,107760.0,1.60490322]
[1756763884968,0.08133,107770.0,107760.0,1.60708619]
[1756763885567,0.08383,107770.0,107760.0,1.60708619]
[1756763885768,0.04727,107770.0,107760.0,1.60708619]
[1756763885967,0.08783,107770.0,107760.0,1.60708619]
[1756763886880,0.08783,107770.0,107760.0,1.96788619]
[1756763887572,0.08783,107770.0,107760.0,1.60708619]
[1756763888281,0.1806211,107770.0,107760.0,1.60708619]
[1756763888871,0.1796211,107770.0,107760.0,1.60708619]
[1756763889066,0.1756211,107770.0,107760.0,1.61108619]
[1756763889279,0.1756211,107770.0,107760.0,1.61308619]
[1756763889666,0.1756211,107770.0,107760.0,1.60908619]
[1756763889988,0.1756211,107770.0,107760.0,1.61208619]
[1756763890168,0.44486,107780.0,107770.0,0.06679]
[1756763890480,0.44486,107780.0,107770.0,0.37990161]
[1756763891182,0.44486,107780.0,107770.0,0.38208458]
[1756763891870,0.44486,107780.0,107770.0,0.38408458]
[1756763894380,0.44486,107780.0,107770.0,0.38871458]
[1756763894581,0.4083,107780.0,107770.0,0.38871458]
[1756763894977,0.44486,107780.0,107770.0,0.38871458]
[1756763895178,0.08406,107780.0,107770.0,0.38871458]
[1756763898269,0.1768454,107780.0,107770.0,0.38871458]
[1756763899378,0.1768421,107780.0,107770.0,0.38871458]
[1756763901375,0.0927821,107780.0,107770.0,0.38871458]
[1756763901587,0.0927821,107780.0,107770.0,1.07951458]
[1756763901883,0.1293421,107780.0,107770.0,1.07951458]
[1756763902486,0.1293421,107780.0,107770.0,1.09544006]
[1756763902781,0.36428581,107790.0,107770.0,1.09544006]
[1756763902977,0.00348581,107790.0,107780.0,1.60521322]
[1756763903177,0.00348581,107790.0,107780.0,2.27819619]
[1756763903376,0.00348581,107790.0,107780.0,2.34469457]
[1756763903577,0.00348581,107790.0,107780.0,2.43747677]
[1756763904782,0.00448581,107790.0,107780.0,2.68747677]
[1756763905388,0.00448581,107790.0,107780.0,2.37847677]
[1756763905776,0.04004581,107790.0,107780.0,2.37847677]
[1756763906086,0.04004581,107790.0,107780.0,2.37747677]
[1756763906281,0.04004581,107790.0,107780.0,2.37947677]
[1756763906480,0.04004581,107790.0,107780.0,1.37449457]
[1756763906694,0.04004581,107790.0,107780.0,1.97350296]
[1756763906990,0.08754581,107790.0,107780.0,1.36266296]
[1756763907485,0.08754581,107790.0,107780.0,0.45058296]
[1756763907692,0.08754581,107790.0,107780.0,1.36266296]
[1756763908189,0.08754581,107790.0,107780.0,1.69266296]
[1756763909280,0.08754581,107790.0,107780.0,1.37955135]
[1756763909590,0.00348581,107790.0,107780.0,2.09855707]
[1756763910192,0.04004581,107790.0,107780.0,2.09855707]
[1756763910584,0.04004581,107790.0,107780.0,2.09843707]
[1756763910785,0.00348581,107790.0,107780.0,2.09843707]
[1756763911186,0.04004581,107790.0,107780.0,2.09843707]
[1756763911993,0.00348581,107790.0,107780.0,2.09843707]
[1756763913493,0.04004581,107790.0,107780.0,2.09843707]
[1756763913795,0.00348581,107790.0,107780.0,2.09843707]
[1756763917186,0.00348581,107790.0,107780.0,2.34843707]
[1756763917387,0.00348581,107790.0,107780.0,2.70923707]
[1756763918894,0.00348581,107790.0,107780.0,2.64273869]
[1756763919194,0.00348581,107790.0,107780.0,2.72619446]
[1756763919396,0.00348581,107790.0,107780.0,7.72619446]
[1756763919796,0.00348581,107790.0,107780.0,7.73082446]
[1756763921604,0.00348581,107790.0,107780.0,7.64736869]
[1756763926396,0.00348581,107790.0,107780.0,7.73082446]
[1756763928501,0.4079,107810.0,107800.0,0.0927663]
[1756763928806,0.4079,107810.0,107800.0,1.77968123]
[1756763929005,0.0471,107810.0,107800.0,1.77968123]
[1756763929208,0.02337,107810.0,107800.0,1.79158367]
[1756763929397,0.02337,107810.0,107800.0,2.08571035]
[1756763929702,0.02337,107810.0,107800.0,2.1523886]
[1756763929901,0.0090814,107810.0,107800.0,2.08571035]
[1756763930205,0.003,107810.0,107800.0,2.08571035]
[1756763930610,0.003,107810.0,107800.0,2.2016227]
[1756763931808,0.003,107810.0,107800.0,2.27424623]
[1756763932009,0.003,107810.0,107800.0,1.96113462]
[1756763932210,0.003,107810.0,107800.0,2.27424623]
[1756763932502,0.003,107810.0,107800.0,2.58735784]
[1756763932705,0.003,107810.0,107800.0,2.59441784]
[1756763932910,0.00431542,107820.0,107810.0,0.19419801]
[1756763933107,0.00431542,107820.0,107810.0,1.24372181]
[1756763933310,0.00431542,107820.0,107810.0,1.24590478]
[1756763933502,0.00431542,107820.0,107810.0,0.53638098]
[1756763933705,0.39568,107840.0,107820.0,0.1738491]
[1756763934010,0.08198,107840.0,107830.0,1.45405247]
[1756763934315,0.44278,107850.0,107840.0,0.0811]
[1756763934511,0.44278,107850.0,107840.0,0.46077168]
[1756763935415,0.44278,107850.0,107840.0,0.46295465]
[1756763936117,0.44578,107850.0,107840.0,0.46295465]
[1756763937206,0.44578,107850.0,107840.0,1.37387465]
[1756763937917,0.08598,107850.0,107840.0,2.12971816]
[1756763938119,0.08598,107850.0,107840.0,2.03698626]
[1756763938307,0.08598,107850.0,107840.0,1.97042619]
[1756763938511,0.0511,107850.0,107840.0,1.97042619]
[1756763939220,0.0511,107850.0,107840.0,2.33122619]
[1756763939622,0.06225,107850.0,107840.0,2.33122619]
[1756763939923,0.02737,107850.0,107840.0,2.33122619]
[1756763940716,0.004,107850.0,107840.0,2.33122619]
[1756763940908,0.004,107850.0,107840.0,2.49051746]
[1756763941217,0.00435883,107860.0,107850.0,0.80004582]
[1756763941415,0.00435883,107860.0,107850.0,1.54940326]
[1756763941822,0.00435883,107860.0,107850.0,1.53940326]
[1756763942017,0.00435883,107860.0,107850.0,1.54924892]
[1756763942212,0.00435883,107860.0,107850.0,0.9230257]
[1756763942425,0.00435883,107860.0,107850.0,1.54924892]
[1756763943522,0.5354821,107880.0,107870.0,0.04769]
[1756763943824,0.5354821,107880.0,107870.0,1.61473161]
[1756763944224,0.5354821,107880.0,107870.0,0.39421161]
[1756763944517,0.5354821,107880.0,107870.0,0.36298458]
[1756763944720,0.1746947,107860.0,107850.0,0.001]
[1756763944925,0.8962947,107860.0,107850.0,1.22451161]
[1756763945121,1.1462947,107860.0,107850.0,1.22451161]
[1756763945829,1.1462947,107860.0,107850.0,0.36177161]
[1756763946124,1.1462947,107860.0,107850.0,1.27517161]
[1756763947016,1.1462947,107860.0,107850.0,1.27617161]
[1756763948025,1.1462947,107860.0,107850.0,1.25163161]
[1756763949526,1.1462947,107860.0,107850.0,0.36577161]
[1756763949928,1.1462947,107860.0,107850.0,1.31211161]
[1756763950425,1.1462947,107860.0,107850.0,1.31674161]
[1756763951128,1.1462947,107860.0,107850.0,0.40646161]
[1756763951432,1.1462947,107860.0,107850.0,1.31670161]
[1756763952626,1.1462947,107860.0,107850.0,0.00863]
[1756763952827,0.1267918,107840.0,107830.0,0.04528978]
[1756763953030,0.61114852,107840.0,107830.0,0.02488]
[1756763953225,0.1755204,107830.0,107820.0,0.04934]
[1756763953427,0.126809,107820.0,107810.0,2.08229478]
[1756763953625,0.487609,107820.0,107810.0,3.23919192]
[1756763954331,0.487609,107820.0,107810.0,2.92608031]
[1756763954521,0.487609,107820.0,107810.0,2.27263161]
[1756763954726,0.49726949,107820.0,107810.0,3.18279161]
[1756763954926,0.54598949,107820.0,107810.0,0.36245161]
[1756763955127,0.54598949,107820.0,107810.0,0.91016]
[1756763955322,0.1755373,107810.0,107800.0,0.46488608]
[1756763955530,0.1755373,107810.0,107800.0,1.30867161]
[1756763955531,0.5333373,107810.0,107800.0,1.30867161]
[1756763955720,0.5333373,107810.0,107800.0,0.99556]
[1756763955928,0.03406,107800.0,107790.0,0.05649322]
[1756763956127,0.44358,107800.0,107790.0,1.32910483]
[1756763956630,0.44258,107800.0,107790.0,0.41894483]
[1756763956832,0.44258,107800.0,107790.0,1.29304483]
[1756763957438,0.44158,107800.0,107790.0,1.29304483]
[1756763957937,0.44158,107800.0,107790.0,1.37051781]
[1756763958329,0.44158,107800.0,107790.0,0.10583322]
[1756763958531,0.44158,107800.0,107790.0,1.40661781]
[1756763958730,0.40952,107800.0,107790.0,0.49641781]
[1756763958925,0.04872,107800.0,107790.0,1.40661781]
[1756763959225,0.40952,107820.0,107810.0,0.0854]
[1756763959429,0.40952,107820.0,107810.0,1.38618459]
[1756763959628,0.40952,107820.0,107810.0,1.63618459]
[1756763959833,0.40456903,107830.0,107810.0,1.60012459]
[1756763960134,0.45328903,107830.0,107820.0,0.47598459]
[1756763960338,0.44358,107830.0,107820.0,0.47598459]
[1756763962737,0.40952,107830.0,107820.0,0.47598459]
[1756763963846,0.44358,107830.0,107820.0,0.47598459]
[1756763964140,0.3608,107830.0,107820.0,0.56873349]
[1756763964434,0.48435672,107840.0,107830.0,0.0854]
[1756763964640,0.48435672,107840.0,107830.0,1.38622459]
[1756763964838,0.51841672,107840.0,107830.0,1.38622459]
[1756763965035,0.51841672,107840.0,107830.0,1.45259906]
[1756763965431,0.51941672,107840.0,107830.0,1.47328988]
[1756763965637,0.52041672,107840.0,107830.0,1.47328988]
[1756763966143,0.52041672,107840.0,107830.0,1.08270529]
[1756763966340,0.52041672,107840.0,107830.0,0.17246529]
[1756763966543,0.52041672,107840.0,107830.0,0.98059082]
[1756763967139,0.61314842,107840.0,107830.0,1.01665082]
[1756763967341,0.61314842,107840.0,107830.0,0.07003082]
[1756763967545,0.1755204,107830.0,107820.0,0.9962]
[1756763967740,0.5363204,107830.0,107820.0,0.9962]
[1756763968740,0.1755291,107820.0,107810.0,0.47598459]
[1756763969047,0.5363291,107820.0,107810.0,1.38670459]
[1756763969842,0.5363291,107820.0,107810.0,0.47598459]
[1756763970043,0.5363291,107820.0,107810.0,1.38770459]
[1756763970443,0.54216626,107820.0,107810.0,0.99712]
[1756763970745,0.54216626,107820.0,107810.0,1.38770459]
[1756763970946,0.54216626,107820.0,107810.0,1.38970459]
[1756763971440,0.54216626,107820.0,107810.0,1.38770459]
[1756763971840,0.54216626,107820.0,107810.0,0.47698459]
[1756763972041,0.54216626,107820.0,107810.0,1.38758459]
[1756763972240,0.5022691,107820.0,107810.0,1.38658459]
[1756763972442,0.4535462,107830.0,107820.0,0.0854]
[1756763972642,0.4535462,107830.0,107820.0,0.47598459]
[1756763972840,0.46969672,107840.0,107820.0,0.47598459]
[1756763973046,0.0927404,107830.0,107820.0,0.0854]
[1756763973252,0.4535404,107830.0,107820.0,0.99668]
[1756763973447,0.0927404,107830.0,107820.0,0.99668]
[1756763973847,0.4535404,107830.0,107820.0,0.99668]
[1756763974051,0.0927404,107830.0,107820.0,0.11571447]
[1756763974251,0.4535404,107830.0,107820.0,1.41757906]
[1756763974449,0.4535404,107830.0,107820.0,1.41725906]
[1756763974750,0.4535404,107830.0,107820.0,1.45331906]
[1756763977239,0.4908104,107830.0,107820.0,0.54435906]
[1756763977446,1.55838499,107830.0,107820.0,0.002]
[1756763977845,1.1678004,107830.0,107820.0,0.002]
[1756763978052,1.55838499,107830.0,107820.0,0.002]
[1756763978452,1.55838499,107830.0,107820.0,0.003]
[1756763978864,0.5378004,107830.0,107820.0,0.003]
[1756763979058,0.5378004,107830.0,107820.0,0.05194]
[1756763979250,0.5408004,107830.0,107820.0,0.05094]
[1756763980054,0.5388004,107830.0,107820.0,0.05094]
[1756763980257,0.5428004,107830.0,107820.0,0.02468]
[1756763980853,0.4928104,107830.0,107820.0,0.08338]
[1756763981048,0.002,107830.0,107820.0,2.06021038]
[1756763981250,0.002,107830.0,107820.0,2.42101038]
[1756763981451,0.002,107830.0,107820.0,2.56431096]
[1756763983058,0.001,107830.0,107820.0,2.56631096]
[1756763983559,0.3608,107850.0,107840.0,0.08338]
[1756763983560,0.44506,107850.0,107840.0,0.08338]
[1756763983863,0.44506,107850.0,107840.0,1.45531142]
[1756763985061,0.44506,107850.0,107840.0,1.06472683]
[1756763985252,0.44506,107850.0,107840.0,1.45531142]
[1756763985652,0.40779,107850.0,107840.0,1.45531142]
[1756763985853,0.40779,107850.0,107840.0,1.06472683]
[1756763986060,0.39807,107860.0,107840.0,1.87208098]
[1756763986366,0.44506,107860.0,107850.0,0.54051142]
[1756763987355,0.5377776,107860.0,107850.0,0.54051142]
[1756763987759,0.5387776,107860.0,107850.0,0.54051142]
[1756763988658,0.5387776,107860.0,107850.0,0.47396459]
[1756763989057,0.5015076,107860.0,107850.0,0.48825459]
[1756763989258,0.5025076,107860.0,107850.0,0.48825459]
[1756763990258,0.1417076,107860.0,107850.0,0.48825459]
[1756763990461,0.5025076,107860.0,107850.0,0.48825459]
[1756763990663,0.5397776,107860.0,107850.0,0.48825459]
[1756763990860,0.5025076,107860.0,107850.0,0.48825459]
[1756763991660,0.5397776,107860.0,107850.0,0.48825459]
[1756763992666,0.5397776,107860.0,107850.0,0.47396459]
[1756763993882,0.5397776,107860.0,107850.0,0.04894]
[1756763994067,0.5397776,107860.0,107850.0,0.93704]
[1756763994762,0.5397776,107860.0,107850.0,0.9613]
[1756763995069,0.5397776,107860.0,107850.0,1.35188459]
[1756763995863,0.5397776,107860.0,107850.0,1.38632459]
[1756763996857,0.7897776,107860.0,107850.0,1.38632459]
[1756763999268,0.5397776,107860.0,107850.0,1.38632459]
[1756763999460,0.5397776,107860.0,107850.0,0.99574]
[1756763999663,0.5397776,107860.0,107850.0,1.38632459]
[1756764000258,0.0927315,107840.0,107830.0,0.10095911]
[1756764000568,0.97112874,107840.0,107830.0,0.08338]
[1756764000768,1.22112874,107840.0,107830.0,0.08338]
[1756764000962,1.22112874,107840.0,107820.0,1.30142459]
[1756764000963,0.1770006,107830.0,107820.0,0.91084]
[1756764001163,0.1770081,107820.0,107810.0,0.96634]
[1756764001375,0.5378081,107820.0,107810.0,1.39136459]
[1756764002056,0.5348081,107820.0,107810.0,1.39136459]
[1756764002864,0.5358081,107820.0,107810.0,1.00078]
[1756764003571,0.54162967,107820.0,107810.0,0.08338]
[1756764003770,0.54162967,107820.0,107810.0,1.00518]
[1756764004162,0.54262967,107820.0,107810.0,1.00518]
[1756764004664,0.79262967,107820.0,107810.0,0.97074]
[1756764005065,1.46594426,107820.0,107790.0,0.10370911]
[1756764005272,1.21044459,107800.0,107780.0,5.10370911]
[1756764005473,0.39702,107790.0,107780.0,5.0]
[1756764005673,0.78760459,107790.0,107780.0,5.0]
[1756764006171,1.38760459,107790.0,107780.0,5.0]
[1756764006564,1.38660459,107790.0,107780.0,5.0]
[1756764007666,1.38560459,107790.0,107780.0,5.0]
[1756764007866,1.50588385,107790.0,107780.0,5.002]
[1756764008574,1.50588385,107790.0,107780.0,5.003]
[1756764008970,1.50588385,107790.0,107780.0,4.99238208]
[1756764009175,2.43096385,107790.0,107780.0,4.99238208]
[1756764009377,2.43096385,107790.0,107780.0,4.99038208]
[1756764009575,2.52373005,107790.0,107780.0,4.67136158]
[1756764009874,2.52373005,107790.0,107780.0,3.60109318]
[1756764012277,2.52373005,107790.0,107780.0,2.96432698]
[1756764012470,2.13314546,107790.0,107780.0,2.96432698]
[1756764012664,2.52373005,107790.0,107780.0,2.96432698]
[1756764013473,2.62023954,107790.0,107780.0,2.43234697]
[1756764013676,2.98103954,107790.0,107780.0,2.29667746]
[1756764013875,2.98103954,107790.0,107780.0,2.28948157]
[1756764014075,2.98103954,107790.0,107780.0,2.13319157]
[1756764014275,2.98103954,107790.0,107780.0,2.13060685]
[1756764014880,2.98103954,107790.0,107780.0,2.12046519]
[1756764015178,2.98103954,107790.0,107780.0,2.08184519]
[1756764016383,2.98103954,107790.0,107780.0,2.01759519]
[1756764016579,2.59045495,107790.0,107780.0,1.90867519]
[1756764016775,2.05595954,107790.0,107780.0,1.90867519]
[1756764016980,2.98191954,107790.0,107780.0,1.90477519]
[1756764017374,2.98191954,107790.0,107780.0,1.89974519]
[1756764017575,2.98191954,107790.0,107780.0,1.89183519]
[1756764018381,2.05595954,107790.0,107780.0,1.89183519]
[1756764018580,0.8123662,107790.0,107780.0,2.17902519]
[1756764018882,0.7308262,107790.0,107780.0,0.33761]
[1756764019069,0.0927662,107790.0,107780.0,1.08899459]
[1756764024270,0.00576691,107820.0,107780.0,1.31338459]
[1756764024481,0.3608,107830.0,107810.0,0.75138459]
[1756764024684,0.3608,107830.0,107810.0,1.68038459]
[1756764025073,0.3608,107830.0,107810.0,1.2898]
[1756764025278,0.3608,107830.0,107810.0,1.68038459]
[1756764025478,1.44825724,107840.0,107820.0,0.3608]
[1756764025676,0.07891042,107840.0,107820.0,0.75138459]
[1756764025880,0.93064,107850.0,107830.0,0.75138459]
[1756764026585,0.78760459,107840.0,107820.0,1.2914]
[1756764026788,0.08384,107830.0,107820.0,1.2914]
[1756764026978,0.44464,107830.0,107810.0,1.32206459]
[1756764027288,0.40842,107830.0,107820.0,0.39478459]
[1756764027487,0.39702,107840.0,107820.0,0.0032]
[1756764027680,0.44464,107840.0,107830.0,0.0042]
[1756764027876,0.08384,107840.0,107830.0,0.0042]
[1756764028081,0.44464,107840.0,107830.0,0.0042]
[1756764028290,0.45129708,107840.0,107830.0,0.0042]
[1756764028683,0.52462809,107840.0,107830.0,0.0042]
[1756764029584,0.08384,107860.0,107850.0,0.0032]
[1756764029785,0.45113606,107860.0,107850.0,0.0042]
[1756764029979,0.04762,107860.0,107850.0,0.0042]
[1756764030175,0.44464,107870.0,107860.0,0.001]
[1756764030376,1.3814,107870.0,107860.0,0.0042]
[1756764031782,1.3854,107870.0,107860.0,0.0042]
[1756764032591,1.3924,107870.0,107860.0,0.0052]
[1756764033484,1.39890061,107870.0,107860.0,0.0052]
[1756764034090,1.39890061,107870.0,107860.0,0.0026]
[1756764034386,1.39890061,107870.0,107860.0,0.001]
[1756764035689,1.64890061,107870.0,107860.0,0.001]
[1756764035993,0.08347,107840.0,107830.0,0.0074]
[1756764036186,0.44427,107840.0,107830.0,0.0074]
[1756764036683,0.44427,107840.0,107810.0,0.41135826]
[1756764036684,0.037,107830.0,107810.0,0.41135826]
[1756764036894,0.08347,107820.0,107810.0,0.41975826]
[1756764037484,0.44427,107820.0,107810.0,0.41975826]
[1756764037686,0.08347,107820.0,107810.0,0.41975826]
[1756764037881,0.44427,107820.0,107810.0,0.41975826]
[1756764038292,0.44427,107820.0,107810.0,0.02917367]
[1756764038986,0.44427,107820.0,107810.0,0.41975826]
[1756764039694,0.44827,107820.0,107810.0,0.41975826]
[1756764040084,0.44927,107820.0,107810.0,0.02717367]
[1756764040389,0.08847,107820.0,107810.0,0.41975826]
[1756764040593,0.005,107820.0,107810.0,2.06931056]
[1756764041493,0.004,107820.0,107810.0,2.06931056]
[1756764041993,0.83496,107850.0,107810.0,2.06731056]
[1756764042188,0.08347,107840.0,107830.0,0.0084]
[1756764043188,0.08347,107840.0,107830.0,0.3692]
[1756764043394,0.08347,107840.0,107830.0,0.0084]
[1756764044192,0.08647,107840.0,107830.0,0.0084]
[1756764044697,0.44827,107840.0,107830.0,0.0084]
[1756764045399,0.08347,107830.0,107820.0,0.9536]
[1756764045592,0.08347,107830.0,107820.0,0.0084]
[1756764046692,0.08347,107830.0,107820.0,0.0064]
[1756764046898,0.40827,107830.0,107810.0,1.35859826]
[1756764047097,0.037,107820.0,107810.0,1.35859826]
[1756764048098,0.08347,107820.0,107810.0,1.36427826]
[1756764048398,0.08347,107820.0,107810.0,1.36411826]
[1756764048794,0.44427,107830.0,107820.0,0.0084]
[1756764049098,0.08347,107830.0,107820.0,0.39898459]
[1756764050296,0.08347,107830.0,107820.0,0.0084]
[1756764050497,0.08447,107830.0,107820.0,0.0084]
[1756764051397,0.08547,107830.0,107820.0,0.0084]
[1756764051893,0.08447,107830.0,107820.0,0.0084]
[1756764052099,0.08747,107830.0,107820.0,0.0084]
[1756764052305,0.44827,107830.0,107820.0,0.0084]
[1756764055106,0.037,107820.0,107810.0,1.43920826]
[1756764056505,0.038,107820.0,107810.0,1.43920826]
[1756764060613,0.08447,107820.0,107810.0,0.49580826]
[1756764060810,0.08447,107820.0,107810.0,1.43636826]
[1756764061004,0.08447,107820.0,107810.0,0.49580826]
[1756764061205,0.08447,107820.0,107810.0,1.43624826]
[1756764061416,0.08447,107820.0,107810.0,0.49580826]
[1756764061713,1.46585459,107820.0,107810.0,0.07605]
[1756764062211,1.07527,107820.0,107810.0,0.07605]
[1756764062406,0.71527,107820.0,107810.0,0.07605]
[1756764062911,1.06527,107820.0,107810.0,0.07605]
[1756764063208,1.45585459,107820.0,107810.0,0.07605]
[1756764063404,0.69527,107820.0,107810.0,0.00105]
[1756764063607,0.69527,107820.0,107800.0,0.08589]
[1756764063608,0.08347,107810.0,107800.0,0.08589]
[1756764063800,2.12885459,107810.0,107800.0,0.08589]
[1756764064000,2.1136336,107810.0,107780.0,0.61724785]
[1756764064198,0.44427,107790.0,107780.0,0.10620785]
[1756764064403,0.44427,107790.0,107780.0,0.06906785]
[1756764064611,0.76427,107790.0,107780.0,0.06906785]
[1756764065407,0.76427,107790.0,107780.0,0.02070785]
[1756764065610,1.15485459,107790.0,107780.0,0.02070785]
[1756764065812,1.51565459,107790.0,107780.0,0.02370785]
[1756764066115,1.51465459,107790.0,107780.0,0.02370785]
[1756764066319,2.70189459,107790.0,107760.0,0.08592]
[1756764066522,0.0844,107770.0,107760.0,0.16937]
[1756764066817,0.4452,107770.0,107760.0,0.16937]
[1756764067016,0.4652,107770.0,107760.0,0.16937]
[1756764067214,0.4652,107770.0,107760.0,0.13193]
[1756764067416,2.39082459,107770.0,107760.0,0.08592]
[1756764067602,2.39740145,107770.0,107760.0,0.08592]
[1756764067927,2.47065383,107770.0,107750.0,0.0761]
[1756764068110,0.83578459,107760.0,107750.0,0.0761]
[1756764068418,1.16578459,107760.0,107750.0,0.0761]
[1756764068719,1.41578459,107760.0,107750.0,0.0761]
[1756764068919,1.41578459,107760.0,107750.0,0.00415]
[1756764069218,1.82805337,107760.0,107750.0,0.00415]
[1756764069510,1.80636918,107760.0,107750.0,0.00615]
[1756764070106,1.80636918,107760.0,107750.0,0.00515]
[1756764070308,1.80636918,107760.0,107750.0,0.00415]
[1756764070506,0.7802,107760.0,107750.0,0.00515]
[1756764070703,1.69243,107760.0,107750.0,0.10284]
[1756764070903,0.95384,107760.0,107750.0,0.74342459]
[1756764071103,0.009,107760.0,107750.0,1.19702899]
[1756764071307,0.009,107760.0,107750.0,1.52702899]
[1756764071501,0.009,107760.0,107750.0,1.58355775]
[1756764071706,0.009,107760.0,107750.0,1.97414234]
[1756764071907,0.3608,107800.0,107790.0,0.04601]
[1756764072102,0.4916,107810.0,107790.0,0.08345]
[1756764072303,0.4916,107810.0,107800.0,0.09769]
[1756764072304,0.8416,107810.0,107800.0,0.09769]
[1756764072818,0.4916,107810.0,107800.0,0.09769]
[1756764073414,1.51218459,107810.0,107790.0,0.08445]
[1756764073617,0.3608,107800.0,107790.0,0.08445]
[1756764073815,0.3608,107800.0,107790.0,0.08345]
[1756764074515,0.3808,107800.0,107790.0,0.08345]
[1756764076424,0.3828,107800.0,107790.0,0.08345]
[1756764078111,0.3628,107800.0,107790.0,0.08345]
[1756764078414,0.002,107800.0,107790.0,0.47403459]
[1756764078609,0.002,107800.0,107790.0,1.10528919]
[1756764079714,0.003,107800.0,107790.0,0.7147046]
[1756764079922,0.001,107800.0,107790.0,1.10528919]
[1756764080217,0.001,107800.0,107790.0,1.10728919]
[1756764080918,0.001,107800.0,107790.0,1.02353675]
[1756764082521,0.001,107800.0,107790.0,1.09653065]
[1756764085426,0.001,107800.0,107790.0,2.04857065]
[1756764085814,0.001,107800.0,107790.0,0.5022585]
[1756764086013,0.91783215,107800.0,107790.0,0.002]
[1756764086220,1.27863215,107800.0,107790.0,0.002]
[1756764086419,2.23059215,107800.0,107790.0,0.002]
[1756764088427,1.89388,107800.0,107790.0,0.002]
[1756764088627,1.56388,107800.0,107790.0,0.002]
[1756764088930,2.21071215,107800.0,107790.0,0.002]
[1756764090633,0.6218,107800.0,107790.0,0.04801]
[1756764090822,1.8748,107800.0,107790.0,0.04801]
[1756764091130,0.9218,107800.0,107790.0,0.002]
[1756764091323,2.18211215,107800.0,107790.0,0.002]
[1756764091923,1.87528,107800.0,107790.0,0.002]
[1756764092432,2.18211215,107800.0,107790.0,0.002]
[1756764094431,2.18155215,107800.0,107790.0,0.002]
[1756764094828,1.22863215,107800.0,107790.0,0.002]
[1756764095028,2.18019215,107800.0,107790.0,0.08322]
[1756764095421,0.001,107800.0,107790.0,1.00085215]
[1756764098944,0.001,107800.0,107790.0,0.64005215]
[1756764099129,0.001,107800.0,107790.0,0.33322]
[1756764099831,0.001,107800.0,107790.0,0.08322]
[1756764100838,1.26863215,107800.0,107790.0,0.08322]
[1756764101238,1.91436,107800.0,107790.0,0.08322]
[1756764101427,0.9618,107800.0,107790.0,0.08322]
[1756764101627,1.91416,107800.0,107790.0,0.08322]
[1756764102036,2.22099215,107800.0,107790.0,0.08322]
[1756764102343,1.91416,107800.0,107790.0,0.04859]
[1756764102535,2.22099215,107800.0,107790.0,0.04859]
[1756764102838,2.22099215,107800.0,107790.0,0.08322]
[1756764103839,1.91416,107800.0,107790.0,0.08322]
[1756764104144,2.22099215,107800.0,107790.0,0.08322]
[1756764104337,0.9618,107800.0,107790.0,0.08322]
[1756764104539,1.91368,107800.0,107790.0,0.08322]
[1756764105647,1.91316,107800.0,107790.0,0.08322]
[1756764105944,0.9618,107800.0,107790.0,0.08322]
[1756764106144,1.91332,107800.0,107790.0,0.08322]
[1756764106452,0.9618,107800.0,107790.0,0.08322]
[1756764106644,1.91248,107800.0,107790.0,0.08322]
[1756764112845,1.91248,107800.0,107790.0,0.04859]
[1756764114147,1.65896,107800.0,107790.0,0.64005215]
[1756764114349,1.29816,107800.0,107790.0,0.64005215]
[1756764114545,1.65896,107800.0,107790.0,0.33322]
[1756764115646,1.30948,107800.0,107790.0,0.33322]
[1756764115841,1.29868,107800.0,107790.0,0.33322]
[1756764116238,0.351,107800.0,107790.0,0.33322]
[1756764116450,0.001,107800.0,107790.0,0.7867888]
[1756764116739,0.001,107800.0,107790.0,1.06737126]
[1756764118952,0.001,107800.0,107790.0,0.76053911]
[1756764119147,0.001,107800.0,107790.0,0.81737126]
[1756764119852,0.001,107800.0,107790.0,0.89211653]
[1756764121751,0.001,107800.0,107790.0,0.58528438]
[1756764122050,0.001,107800.0,107790.0,0.89211653]
[1756764123952,0.001,107800.0,107790.0,0.51053911]
[1756764124657,0.001,107800.0,107790.0,0.14973911]
[1756764125447,0.251,107800.0,107790.0,0.11510911]
[1756764125759,0.251,107800.0,107790.0,0.04859]
[1756764125760,1.29863215,107800.0,107790.0,0.04859]
[1756764126150,2.25131215,107800.0,107790.0,0.002]
[1756764129753,2.25131215,107800.0,107780.0,0.16197]
[1756764130053,0.66763215,107790.0,107780.0,0.16197]
[1756764130253,0.99763215,107790.0,107780.0,0.16197]
[1756764130856,1.24763215,107790.0,107780.0,0.16297]
[1756764131050,0.9408,107790.0,107780.0,0.24639]
[1756764131251,1.89488,107790.0,107780.0,0.24639]
[1756764131656,1.89688,107790.0,107780.0,0.24539]
[1756764131961,2.20371215,107790.0,107780.0,0.24539]
[1756764132257,2.20771215,107790.0,107780.0,0.2096]
[1756764132858,2.61400319,107790.0,107730.0,0.51250235]
[1756764133056,0.3608,107740.0,107710.0,0.08342]
[1756764133255,1.62543215,107730.0,107720.0,0.04763]
[1756764133456,1.99543215,107730.0,107720.0,0.13509186]
[1756764133660,1.99543215,107730.0,107710.0,0.08342]
[1756764133861,0.66763215,107720.0,107700.0,0.05469]
[1756764134157,1.319,107710.0,107700.0,0.25245]
[1756764134659,0.66763215,107710.0,107700.0,0.33991186]
[1756764134858,0.66763215,107710.0,107680.0,0.08342]
[1756764134859,2.19531215,107710.0,107680.0,0.08342]
[1756764135061,0.66663215,107700.0,107690.0,0.17088186]
[1756764135362,0.97663215,107700.0,107690.0,0.17088186]
[1756764135659,0.97663215,107700.0,107690.0,0.29706186]
[1756764135867,0.3608,107700.0,107690.0,0.58285186]
[1756764136053,0.3608,107710.0,107700.0,0.09707]
[1756764136362,0.3608,107710.0,107700.0,0.34650186]
[1756764136750,0.3608,107710.0,107700.0,0.34850186]
[1756764137156,0.3628,107720.0,107700.0,0.95930186]
[1756764137360,1.33656,107720.0,107710.0,0.33285186]
[1756764138263,0.3608,107720.0,107710.0,0.33285186]
[1756764138461,0.3628,107720.0,107710.0,0.33285186]
[1756764140557,1.23963215,107720.0,107700.0,0.3852]
[1756764140757,1.27855215,107710.0,107700.0,0.52277]
[1756764140966,1.27855215,107710.0,107700.0,0.63463186]
[1756764141160,1.63935215,107710.0,107700.0,0.27383186]
[1756764142153,1.65935215,107710.0,107700.0,0.27383186]